Workbook

Sheet Classement de la FIFA
B2: 1 | F2: Espagne 1485 points | H2: 31 | L2: Panama 743 points | N2: 61 | R2: Finlande 532 points | T2: 91 | X2: Arabie Saoudite 381 points | Z2: 120 | AD2: Aruba 254 points | AF2: 151 | AJ2: Antigua-et-Barbuda 158 points | AL2: 181 | AP2: Seychelles 66 points
B4: 2 | F4: Allemagne 1300 points | H4: 32 | L4: Suède 741 points | N4: 62 | R4: Australie 526 points | T4: 92 | X4: Botswana 375 points | Z4: 122 | AD4: Malawi 247 points | AF4: 152 | AJ4: Belize 152 points | AL4: 182 | AP4: Curaçao 65 points
B6: 3 | F6: Brésil 1242 points | H6: 33 | L6: Honduras 731 points | N6: 63 | R6: Jordanie 510 points | T6: 93 | X6: Angola 364 points | Z6: 123 | AD6: Viêt-Nam 242 points | AF6: 153 | AJ6: Malaisie 149 points | AL6: 183 | AP6: Yémen 61 points
B8: 4 | F8: Portugal 1189 points | H8: 34 | L8: République Tchèque 724 points | N8: 64 | R8: Libye 498 points | T8: 94 | X8: Palestine 358 points | Z8: 124 | AD8: Kazakhstan 241 points | AF8: 154 | AJ8: Inde 144 points | AL8: 184 | AP8: Maurice 57 points
B10: 5 | F10: Argentine 1175 points | H10: 35 | L10: Turquie 722 points | N10: 65 | R10: Afrique du Sud 496 points | T10: 95 | X10: Cuba 354 points | Z10: 125 | AD10: Liban 233 points | AF10: 155 | AJ10: Singapour 141 points | AL10: 185 | AP10: Soudan du Sud 47 points
B12: 6 | F12: Suisse 1149 points | H12: 36 | L12: Egypte 715 points | N12: 66 | R12: Albanie 495 points | T12: 96 | X12: Géorgie 349 points | Z12: 126 | AD12: Tadjikistan 229 points | AF12: 156 | AJ12: Guyana 137 points | AL12: 186 | AP12: Bahamas 40 points
B14: 7 | F14: Uruguay 1147 points | H14: 37 | L14: Ghana 704 points | N14: 67 | R14: Bolivie 483 points | T14: 97 | X14: Nouvelle-Zélande 347 points | Z14: 127 | AD14: Guatemala 226 points | AF14: 157 | AJ14: Indonésie 135 points | AL14: 187 | AP14: Mongolie 35 points
B16: 8 | F16: Colombie 1137 points | H16: 38 | L16: Arménie 682 points | N16: 68 | R16: El Salvador 481 points | T16: 98 | X16: Estonie 343 points | Z16: 128 | AD16: Burundi 221 points | AF16: 158 | AJ16: Porto Rico 134 points | AL16: 188 | AP16: Fidji 34 points
B18: 9 | F18: Italie 1104 points | H18: 39 | L18: Cap-Vert 674 points | N18: 69 | R18: Pologne 474 points | T18: 99 | X18: Zimbabwe 340 points | Z18: 129 | AD18: Philippines 217 points | AF18: 159 | AJ18: Myanmar 133 points | AL18: 189 | AP18: Samoa 32 points
B20: 10 | F20: Angleterre 1090 points | H20: 40 | L20: Venezuela 672 points | N20: 70 | R20: Irlande 473 points | T20: 100 | X20: Qatar 339 points | Z20: 130 | AD20: Afghanistan 215 points | AF20: 160 | AJ20: Saint-Kitts-et-Nevis 124 points | AL20: 190 | AP20: Cambodge 28 points
B22: 11 | F22: Belgique 1074 points | H22: 41 | L22: Pays de Galles 644 points | N22: 71 | R22: Trinité-et-Tobago 470 points | T22: 101 | X22: Moldavie 334 points | Z22: 131 | AD22: République dominicaine 212 points | AF22: 161 | AJ22: Tahiti 122 points | AL22: 190 | AP22: Vanuatu 28 points
B24: 12 | F24: Grèce 1064 points | H24: 42 | L24: Autriche 643 points | N24: 72 | R24: Emirats arabes unis 460 points | T24: 102 | X24: Guinée Équatoriale 333 points | Z24: 132 | AD24: Malte 204 points | AF24: 162 | AJ24: Liechtenstein 118 points | AL24: 192 | AP24: Brunei 26 points
B26: 13 | F26: Etats-Unis 1035 points | H26: 43 | L26: Iran 641 points | N26: 73 | R26: Haïti 452 points | T26: 103 | X26: Chine 331 points | Z26: 133 | AD26: Saint-Vincent-et-les-Grenadines 203 points | AF26: 163 | AJ26: Hongkong 112 points | AL26: 192 | AP26: Timor Oriental 26 points
B28: 14 | F28: Chili 1026 points | H28: 44 | L28: Nigéria 640 points | N28: 74 | R28: Sénégal 451 points | T28: 104 | X28: Irak 329 points | Z28: 134 | AD28: Guinée-Bissau 201 points | AF28: 164 | AJ28: Pakistan 102 points | AL28: 192 | AP28: Tonga 26 points
B30: 15 | F30: Pays-Bas 981 points | H30: 45 | L30: Pérou 627 points | N30: 75 | R30: Israël 444 points | T30: 105 | X30: République centrafricaine 321 points | Z30: 134 | AD30: Tchad 201 points | AF30: 164 | AJ30: Népal 102 points | AL30: 195 | AP30: Iles Vierges Américaines 23 points
B32: 16 | F32: Ukraine 915 points | H32: 46 | L32: Japon 626 points | N32: 76 | R32: Zambie 441 points | T32: 106 | X32: Lituanie 319 points | Z32: 136 | AD32: Suriname 197 points | AF32: 166 | AJ32: Montserrat 99 points | AL32: 196 | AP32: Iles Caïmans 21 points
B34: 17 | F34: France 913 points | H34: 47 | L34: Hongrie 624 points | N34: 77 | R34: Maroc 439 points | T34: 107 | X34: Ethiopie 317 points | Z34: 137 | AD34: Mauritanie 196 points | AF34: 167 | AJ34: Bangladesh 98 points | AL34: 196 | AP34: Papouasie-Nouvelle-Guinée 21 points
B36: 18 | F36: Croatie 903 points | H36: 48 | L36: Tunisie 612 points | N36: 78 | R36: Bulgarie 425 points | T36: 108 | X36: Kenya 296 points | Z36: 137 | AD36: Sainte-Lucie 196 points | AF36: 168 | AJ36: Laos 97 points | AL36: 198 | AP36: Iles Vierges Britanniques 18 points
B38: 19 | F38: Russie 893 points | H38: 49 | L38: Slovaquie 591 points | N38: 79 | R38: Oman 420 points | T38: 109 | X38: Lettonie 293 points | Z38: 139 | AD38: Lesotho 194 points | AF38: 169 | AJ38: Dominique 93 points | AL38: 198 | AP38: Samoa américaines 18 points
B40: 20 | F40: Mexique 882 points | H40: 50 | L40: Paraguay 575 points | N40: 80 | R40: Macédoine 419 points | T40: 110 | X40: Bahreïn 289 points | Z40: 140 | AD40: Nouvelle-Calédonie 190 points | AF40: 170 | AJ40: Barbade 92 points | AL40: 200 | AP40: Andorre 16 points
B42: 21 | F42: Bosnie-Herzégovine 873 points | H42: 51 | L42: Monténégro 574 points | N42: 81 | R42: Jamaïque 411 points | T42: 110 | X42: Canada 289 points | Z42: 140 | AD42: Syrie 190 points | AF42: 171 | AJ42: Iles Féroé 89 points | AL42: 201 | AP42: Erythrée 11 points
B44: 22 | F44: Algérie 858 points | H44: 52 | L44: Guinée 566 points | N44: 82 | R44: Bélarus 397 points | T44: 112 | X44: Niger 284 points | Z44: 142 | AD44: Chypre 189 points | AF44: 172 | AJ44: Sao Tomé e Principe 86 points | AL44: 202 | AP44: Somalie 8 points
B46: 23 | F46: Côte d'Ivoire 809 points | H46: 52 | L46: Islande 566 points | N46: 83 | R46: Azerbaïdjan 396 points | T46: 113 | X46: Tanzanie 283 points | Z46: 143 | AD46: Turkménistan 183 points | AF46: 173 | AJ46: Swaziland 85 points | AL46: 202 | AP46: Macau 8 points
B48: 23 | F48: Danemark 809 points | H48: 54 | L48: Sierra Leone 565 points | N48: 84 | R48: République Démocratique du Congo 395 points | T48: 114 | X48: Namibie 277 points | Z48: 144 | AD48: Grenade 182 points | AF48: 174 | AJ48: Comores 84 points | AL48: 204 | AP48: Djibouti 6 points
B50: 25 | F50: Slovénie 800 points | H50: 55 | L50: Norvège 562 points | N50: 85 | R50: Congo-Brazzaville 393 points | T50: 115 | X50: Koweït 276 points | Z50: 144 | AD50: Madagascar 182 points | AF50: 175 | AJ50: Bermudes 83 points | AL50: 205 | AP50: Iles Cook 5 points
B52: 26 | F52: Equateur 791 points | H52: 56 | L52: Cameroun 558 points | N52: 86 | R52: Ouganda 390 points | T52: 116 | X52: Libéria 271 points | Z52: 146 | AD52: Corée du Nord 175 points | AF52: 176 | AJ52: Nicaragua 78 points | AL52: 206 | AP52: Anguilla 3 points
B54: 27 | F54: Ecosse 786 points | H54: 57 | L54: Corée du Sud 547 points | N54: 87 | R54: Bénin 386 points | T54: 116 | X54: Rwanda 271 points | Z54: 147 | AD54: Iles Maldives 171 points | AF54: 176 | AJ54: Chinese Taipei 78 points | AL54: 207 | AP54: Bhoutan 0 points
B56: 28 | F56: Costa Rica 762 points | H56: 57 | L56: Mali 547 points | N56: 88 | R56: Togo 383 points | T56: 118 | X56: Mozambique 269 points | Z56: 148 | AD56: Gambie 166 points | AF56: 178 | AJ56: Guam 77 points | AL56: 207 | AP56: Saint-Marin 0 points
B58: 29 | F58: Roumanie 761 points | H58: 59 | L58: Ouzbékistan 539 points | N58: 89 | R58: Gabon 382 points | T58: 119 | X58: Luxembourg 267 points | Z58: 149 | AD58: Kirghizistan 163 points | AF58: 179 | AJ58: Sri Lanka 73 points | AL58: 207 | AP58: Turks et Caicos 0 points
B60: 30 | F60: Serbie 745 points | H60: 60 | L60: Burkina Faso 538 points | N60: 90 | R60: Irlande du Nord 381 points | T60: 120 | X60: Soudan 254 points | Z60: 149 | AD60: Thaïlande 163 points | AF60: 180 | AJ60: Iles Salomon 70 points

Sheet matchs amicaux
C2: GROUPE A | O2: GROUPE B | AA2: GROUPE C
C3: Brésil | F3: 4 | G3: 0 | H3: Panama | O3: Australie | R3: 1 | S3: 1 | T3: Afrique du Sud | V3: Afrique du Sud | AA3: Colombie | AD3: 2 | AE3: 2 | AF3: Sénégal
C4: Brésil | F4: 1 | G4: 0 | H4: Serbie | O4: Croatie | R4: 1 | S4: 0 | T4: Australie | V4: Australie | AA4: Colombie | AD4: 3 | AE4: 0 | AF4: Jordanie
C5: Macédoine | F5: 0 | G5: 2 | H5: Cameroun | O5: Chili | R5: 3 | S5: 2 | T5: Egypte | V5: Egypte | AA5: Bosnie-Herzégovine | AD5: 2 | AE5: 1 | AF5: Côte d'Ivoire
C6: Cameroun | F6: 1 | G6: 2 | H6: Paraguay | O6: Chili | R6: 2 | S6: 0 | T6: Irlande du Nord | V6: Irlande du Nord | AA6: El Salvador | AD6: 1 | AE6: 2 | AF6: Côte d'Ivoire
C7: Allemagne | F7: 2 | G7: 2 | H7: Cameroun | O7: Espagne | R7: 2 | S7: 0 | T7: Bolivie | V7: Bolivie | AA7: Portugal | AD7: 0 | AE7: 0 | AF7: Grèce
C8: Cameroun | F8: 1 | G8: 0 | H8: Moldavie | O8: El Salvador | R8: 0 | S8: 2 | T8: Espagne | V8: Espagne | AA8: Grèce | AD8: 0 | AE8: 0 | AF8: Nigéria
C9: Croatie | F9: 2 | G9: 1 | H9: Mali | O9: Pays-Bas | R9: 1 | S9: 1 | T9: Equateur | V9: Equateur | AA9: Grèce | AD9: 2 | AE9: 1 | AF9: Bolivie
C10: Croatie | F10: 1 | G10: 0 | H10: Australie | O10: Pays-Bas | R10: 1 | S10: 0 | T10: Ghana | V10: Ghana | AA10: Japon | AD10: 1 | AE10: 0 | AF10: Chypre
C11: Mexique | F11: 3 | G11: 0 | H11: Israël | O11: Pays-Bas | R11: 2 | S11: 0 | T11: Pays de Galles | V11: Pays de Galles | AA11: Costa Rica | AD11: 1 | AE11: 3 | AF11: Japon
C12: Mexique | F12: 3 | G12: 1 | H12: Equateur | AA12: Japon | AD12: 4 | AE12: 3 | AF12: Zambie
C13: Mexique | F13: 0 | G13: 1 | H13: Bosnie-Herzégovine
C14: Mexique | F14: 0 | G14: 1 | H14: Portugal
D16: V | E16: D | F16: N | G16: BP | H16: BC | I16: Moy BP | K16: Moy BC | L16: DIFF | P16: V | Q16: D | R16: N | S16: BP | T16: BC | U16: Moy BP | W16: Moy BC | X16: DIFF | AB16: V | AC16: D | AD16: N | AE16: BP | AF16: BC | AG16: Moy BP | AI16: Moy BC | AJ16: DIFF
B17: Brésil | D17: 2 | E17: 0 | F17: 0 | G17: =SUM(F3,F4) -> 5 | H17: =SUM(G3,G4) -> 0 | I17: =G17/2 -> 2.5 | K17: =H17/2 -> 0 | L17: =I17-K17 -> 2.5 | N17: Australie | P17: 0 | Q17: 1 | R17: 1 | S17: =SUM(R3,S4) -> 1 | T17: =SUM(S3,R4) -> 2 | U17: =S17/2 -> 0.5 | W17: =T17/2 -> 1 | X17: =U17-W17 -> -0.5 | Z17: Colombie | AB17: 1 | AC17: 0 | AD17: 1 | AE17: =SUM(AD3,AD4) -> 5 | AF17: =SUM(AE3,AE4) -> 2 | AG17: =AE17/2 -> 2.5 | AI17: =AF17/2 -> 1 | AJ17: =AG17-AI17 -> 1.5
B18: Cameroun | D18: 2 | E18: 1 | F18: 1 | G18: =SUM(F6,G7,F8) -> 4 | H18: =SUM(F5,G6,F7,G8) -> 4 | I18: =G18/4 -> 1 | K18: =H18/4 -> 1 | L18: =I18-K18 -> 0 | N18: Chili | P18: 2 | Q18: 0 | R18: 0 | S18: =SUM(R5,R6) -> 5 | T18: =SUM(S5,S6) -> 2 | U18: =S18/2 -> 2.5 | W18: =T18/2 -> 1 | X18: =U18-W18 -> 1.5 | Z18: Côte d'Ivoire | AB18: 1 | AC18: 1 | AD18: 0 | AE18: =SUM(AE5,AE6) -> 3 | AF18: =SUM(AD5,AD6) -> 3 | AG18: =AE18/2 -> 1.5 | AI18: =AF18/2 -> 1.5 | AJ18: =AG18-AI18 -> 0
B19: Croatie | D19: 2 | E19: 0 | F19: 0 | G19: =SUM(F9,F10) -> 3 | H19: =SUM(G9,G10) -> 1 | I19: =G19/2 -> 1.5 | K19: =H19/2 -> 0.5 | L19: 1 | N19: Espagne | P19: 2 | Q19: 0 | R19: 0 | S19: =SUM(R7,S8) -> 4 | T19: =SUM(S7,R8) -> 0 | U19: =S19/2 -> 2 | W19: 0 | X19: 2 | Z19: Grèce | AB19: 1 | AC19: 0 | AD19: 2 | AE19: =SUM(AE7,AD8,AD9) -> 2 | AF19: =SUM(AD7,AE8,AE9) -> 1 | AG19: =AE19/3 -> 0.6666666667 | AI19: =AF19/3 -> 0.3333333333 | AJ19: 0.3333333333
B20: Mexique | D20: 2 | E20: 2 | F20: 0 | G20: =SUM(F11,F12,F13,F14) -> 6 | H20: =SUM(G11,G12,G13,G14) -> 3 | I20: =G20/4 -> 1.5 | K20: =H20/4 -> 0.75 | L20: 0.75 | N20: Pays-Bas | P20: 2 | Q20: 0 | R20: 1 | S20: =SUM(R9,R10,R11) -> 4 | T20: =SUM(S9,S10,S11) -> 1 | U20: =S20/3 -> 1.333333333 | W20: =T20/3 -> 0.3333333333 | X20: 1 | Z20: Japon | AB20: 3 | AC20: 0 | AD20: 0 | AE20: =SUM(AD10,AE11,AD12) -> 8 | AF20: =SUM(AE10,AD11,AE12) -> 4 | AG20: =AE20/3 -> 2.666666667 | AI20: =AF20/3 -> 1.333333333 | AJ20: 1.333333333
C23: GROUPE D | O23: GROUPE E | AA23: GROUPE F
C24: Angleterre | F24: 3 | G24: 0 | H24: Pérou | O24: Pays-Bas | R24: 1 | S24: 1 | T24: Equateur | V24: Equateur | AA24: Argentine | AD24: 3 | AE24: 0 | AF24: Trinité-et-Tobago
C25: Equateur | F25: 2 | G25: 2 | H25: Angleterre | O25: Mexique | R25: 3 | S25: 1 | T25: Equateur | AA25: Argentine | AD25: 2 | AE25: 0 | AF25: Slovénie
C26: Angleterre | F26: 0 | G26: 0 | H26: Honduras | O26: Equateur | R26: 2 | S26: 2 | T26: Angleterre | AA26: Bosnie-Herzégovine | AD26: 2 | AE26: 1 | AF26: Côte d'Ivoire
C27: Costa Rica | F27: 1 | G27: 3 | H27: Japon | O27: France | R27: 4 | S27: 0 | T27: Norvège | AA27: Mexique | AD27: 0 | AE27: 1 | AF27: Bosnie-Herzégovine
C28: Costa Rica | F28: 1 | G28: 1 | H28: Irlande | O28: France | R28: 1 | S28: 1 | T28: Paraguay | AA28: Iran | AD28: 0 | AE28: 0 | AF28: Bélarus
C29: Italie | F29: 0 | G29: 0 | H29: Irlande | O29: France | R29: 8 | S29: 0 | T29: Jamaïque | AA29: Monténégro | AD29: 0 | AE29: 0 | AF29: Iran
C30: Italie | F30: 1 | G30: 1 | H30: Luxembourg | O30: Honduras | R30: 0 | S30: 2 | T30: Turquie | AA30: Iran | AD30: 1 | AE30: 1 | AF30: Angola
C31: Uruguay | F31: 1 | G31: 0 | H31: Irlande du Nord | O31: Honduras | R31: 2 | S31: 4 | T31: Israël | AA31: Trinité-et-Tobago | AD31: 0 | AE31: 2 | AF31: Iran
C32: Uruguay | F32: 2 | G32: 0 | H32: Slovénie | O32: Suisse | R32: 1 | S32: 0 | T32: Jamaïque | AA32: Nigéria | AD32: 2 | AE32: 2 | AF32: Ecosse
O33: Suisse | R33: 2 | S33: 0 | T33: Pérou | AA33: Grèce | AD33: 0 | AE33: 0 | AF33: Nigéria
AA34: Etats-Unis | AD34: 2 | AE34: 1 | AF34: Nigéria
D37: V | E37: D | F37: N | G37: BP | H37: BC | I37: Moy BP | K37: Moy BC | L37: DIFF | P37: V | Q37: D | R37: N | S37: BP | T37: BC | U37: Moy BP | W37: Moy BC | X37: DIFF | AB37: V | AC37: D | AD37: N | AE37: BP | AF37: BC | AG37: Moy BP | AI37: Moy BC | AJ37: DIFF
B38: Angleterre | D38: 1 | E38: 0 | F38: 2 | G38: =SUM(F24,G25,F26) -> 5 | H38: =SUM(G24,F25,G26) -> 2 | I38: =G38/3 -> 1.666666667 | K38: =H38/3 -> 0.6666666667 | L38: =I38-K38 -> 1 | N38: Equateur | P38: 0 | Q38: 1 | R38: 2 | S38: =SUM(S24,S25,R26) -> 4 | T38: =SUM(R24,R25,S26) -> 6 | U38: =S38/3 -> 1.333333333 | W38: =T38/3 -> 2 | X38: =U38-W38 -> -0.6666666667 | Z38: Argentine | AB38: 2 | AC38: 0 | AD38: 0 | AE38: =SUM(AD24,AD25) -> 5 | AF38: =SUM(AE24,AE25) -> 0 | AG38: =AE38/2 -> 2.5 | AI38: =AF38/2 -> 0 | AJ38: =AG38-AI38 -> 2.5
B39: Costa Rica | D39: 0 | E39: 1 | F39: 1 | G39: =SUM(F27,F28) -> 2 | H39: =SUM(G27,G28) -> 4 | I39: =G39/2 -> 1 | K39: =H39/2 -> 2 | L39: =I39-K39 -> -1 | N39: France | P39: 2 | Q39: 0 | R39: 1 | S39: =SUM(R27,R28,R29) -> 13 | T39: =SUM(S27,S28,S29) -> 1 | U39: =S39/3 -> 4.333333333 | W39: =T39/3 -> 0.3333333333 | X39: =U39-W39 -> 4 | Z39: Bosnie-Herzégovine | AB39: 2 | AC39: 0 | AD39: 0 | AE39: =SUM(AD26,AE27) -> 3 | AF39: =SUM(AE26,AD27) -> 1 | AG39: =AE39/2 -> 1.5 | AI39: =AF39/2 -> 0.5 | AJ39: =AG39-AI39 -> 1
B40: Italie | D40: 0 | E40: 0 | F40: 2 | G40: =SUM(F29,F30) -> 1 | H40: =SUM(G29,G30) -> 1 | I40: =G40/2 -> 0.5 | K40: =H40/2 -> 0.5 | L40: 0 | N40: Honduras | P40: 0 | Q40: 2 | R40: 0 | S40: =SUM(R30,R31) -> 2 | T40: =SUM(S30,S31) -> 6 | U40: =S40/2 -> 1 | W40: =T40/2 -> 3 | X40: -2 | Z40: Iran | AB40: 1 | AC40: 0 | AD40: 3 | AE40: =SUM(AD28,AE29,AD30,AE31) -> 3 | AF40: =SUM(AE28,AD29,AE30,AD31) -> 1 | AG40: =AE40/4 -> 0.75 | AI40: =AF40/4 -> 0.25 | AJ40: 0.5
B41: Uruguay | D41: 2 | E41: 0 | F41: 0 | G41: =SUM(F31,F32) -> 3 | H41: =SUM(G31,G32) -> 0 | I41: =G41/2 -> 1.5 | K41: =H41/2 -> 0 | L41: 1.5 | N41: Suisse | P41: 2 | Q41: 0 | R41: 0 | S41: =SUM(R32,R33) -> 3 | T41: =SUM(S32,S33) -> 0 | U41: =S41/2 -> 1.5 | W41: =T41/2 -> 0 | X41: 1.5 | Z41: Nigéria | AB41: 0 | AC41: 1 | AD41: 2 | AE41: =SUM(AD32,AE33,AE34) -> 3 | AF41: =SUM(AE32,AD33,AD34) -> 4 | AG41: =AE41/3 -> 1 | AI41: =AF41/3 -> 1.333333333 | AJ41: -0.3333333333
C44: GROUPE G | O44: GROUPE H
C45: Allemagne | F45: 0 | G45: 0 | H45: Pologne | O45: Algérie | R45: 2 | S45: 1 | T45: Roumanie
C46: Allemagne | F46: 2 | G46: 2 | H46: Cameroun | O46: Belgique | R46: 5 | S46: 1 | T46: Luxembourg
C47: Allemagne | F47: 6 | G47: 1 | H47: Arménie | O47: Suède | R47: 0 | S47: 2 | T47: Belgique
C48: Etats-Unis | F48: 2 | G48: 0 | H48: Azerbaïdjan | O48: Belgique | R48: 1 | S48: 0 | T48: Tunisie
C49: Etats-Unis | F49: 2 | G49: 1 | H49: Turquie | O49: Corée du Sud | R49: 0 | S49: 1 | T49: Tunisie
C50: Etats-Unis | F50: 2 | G50: 1 | H50: Nigéria | O50: Ghana | Q50: Ghana | R50: 4 | S50: 0 | T50: Corée du Sud
C51: Pays-Bas | F51: 1 | G51: 0 | H51: Ghana | J51: Ghana | O51: Russie | R51: 1 | S51: 0 | T51: Slovaquie
C52: Ghana | E52: Ghana | F52: 4 | G52: 0 | H52: Corée du Sud | O52: Norvège | R52: 1 | S52: 1 | T52: Russie
C53: Portugal | F53: 0 | G53: 0 | H53: Grèce | O53: Russie | R53: 2 | S53: 0 | T53: Maroc
C54: Mexique | F54: 0 | G54: 1 | H54: Portugal
C55: Irlande | F55: 1 | G55: 5 | H55: Portugal
D59: V | E59: D | F59: N | G59: BP | H59: BC | I59: Moy BP | K59: Moy BC | L59: DIFF | P59: V | Q59: D | R59: N | S59: BP | T59: BC | U59: Moy BP | W59: Moy BC | X59: DIFF
B60: Allemagne | D60: 1 | E60: 0 | F60: 2 | G60: =SUM(F45,F46,F47) -> 8 | H60: =SUM(G45,G46,G47) -> 3 | I60: =G60/3 -> 2.666666667 | K60: =H60/3 -> 1 | L60: =I60-K60 -> 1.666666667 | N60: Algérie | O60: Algérie | P60: 1 | Q60: 0 | R60: 0 | S60: =SUM(R45) -> 2 | T60: =SUM(S45) -> 1 | U60: =S60/1 -> 2 | W60: =T60/1 -> 1 | X60: =U60-W60 -> 1
B61: Etats-Unis | D61: 3 | E61: 0 | F61: 0 | G61: =SUM(F48,F49,F50) -> 6 | H61: =SUM(G48,G49,G50) -> 2 | I61: =G61/3 -> 2 | K61: =H61/3 -> 0.6666666667 | L61: =I61-K61 -> 1.333333333 | N61: Belgique | O61: Belgique | P61: 3 | Q61: 0 | R61: 0 | S61: =SUM(R46,S47,R48) -> 8 | T61: =SUM(S46,R47,S48) -> 1 | U61: =S61/3 -> 2.666666667 | W61: =T61/3 -> 0.3333333333 | X61: =U61-W61 -> 2.333333333
B62: Ghana | D62: 1 | E62: 1 | F62: 0 | G62: =SUM(G51,F52) -> 4 | H62: =SUM(F51,G52) -> 1 | I62: =G62/2 -> 2 | K62: =H62/2 -> 0.5 | L62: 1.5 | N62: Corée du Sud | O62: Corée du Sud | P62: 0 | Q62: 2 | R62: 0 | S62: =SUM(R49,S50) -> 0 | T62: =SUM(S49,R50) -> 5 | U62: =S62/2 -> 0 | W62: =T62/2 -> 2.5 | X62: -2.5
B63: Portugal | D63: 2 | E63: 0 | F63: 1 | G63: =SUM(F53,G54,G55) -> 6 | H63: =SUM(G53,F54,F55) -> 1 | I63: =G63/3 -> 2 | K63: =H63/3 -> 0.3333333333 | L63: 1.666666667 | N63: Russie | O63: Russie | P63: 2 | Q63: 0 | R63: 1 | S63: =SUM(R51,S52,R53) -> 4 | T63: =SUM(S51,R52,S53) -> 1 | U63: =S63/2 -> 2 | W63: =T63/2 -> 0.5 | X63: 1.5

Sheet coupe du monde 2014
B2: Groupe A
B3: 12 Juin | C3: 22h00 | D3: Brésil | E3: 3 | F3: 1 | G3: Croatie | H3: =IF(E3>F3,3,0) -> 3 | I3: =IF(E3<F3,0,0) -> 0 | J3: =IF(AND(E3=F3,ISNUMBER(E3),ISNUMBER(F3)),1,0) -> 0 | K3: =IF(F3>E3,3,0) -> 0 | L3: =IF(F3<E3,0,0) -> 0 | M3: =IF(AND(F3=E3,ISNUMBER(F3),ISNUMBER(E3)),1,0) -> 0 | P3: =IF(H3=3,D3,IF(K3=3,G3,IF(OR(J3,M3)=1,"",""))) -> Brésil | T3: Groupe A | U3: MJ | V3: Pts | W3: BP | X3: BC | Y3: ="+/-" -> +/-
B4: 13 Juin | C4: 18h00 | D4: Mexique | E4: 1 | F4: 0 | G4: Cameroun | H4: 3 | I4: 0 | J4: 0 | K4: 0 | L4: 0 | M4: =IF(AND(F4=E4,ISNUMBER(F4),ISNUMBER(E4)),1,0) -> 0 | N4: =RANK(V4,$V$4:$V$7) -> 4 | O4: =IF(OR(N4=N5,N4=N6,N4=N7),RANK(Y4,Y4:Y7),N4) -> 4 | P4: =IF(H4=3,D4,IF(K4=3,G4,IF(OR(J4,M4)=1,"",""))) -> Mexique | S4: 1 | T4: Cameroun | U4: =SUM(IF(ISBLANK(F4),0,1),IF(ISBLANK(E6),0,1),IF(ISBLANK(E7),0,1)) -> 3 | V4: =SUM(K4:M4,H6:J7) -> 0 | W4: =SUM(F4,E6:E7) -> 1 | X4: =SUM(E4,F6:F7) -> 9 | Y4: =W4-X4 -> -8
B5: 17 Juin | C5: 21h00 | D5: Brésil | E5: 0 | F5: 0 | G5: Mexique | H5: 0 | I5: 0 | J5: 1 | K5: 0 | L5: 0 | M5: 1 | N5: =RANK(V5,$V$4:$V$7) -> 1 | O5: =IF(OR(N5=N4,N5=N6,N5=N7),RANK(Y5,Y4:Y7),N5) -> 2 | P5: =IF(H5=3,D5,IF(K5=3,G5,IF(OR(J5,M5)=1,"",""))) ->  | S5: 2 | T5: Mexique | U5: =SUM(IF(ISBLANK(E4),0,1),IF(ISBLANK(F5),0,1),IF(ISBLANK(F8),0,1)) -> 3 | V5: =SUM(H4:J4,K5:M5,K8:M8) -> 7 | W5: =SUM(E4,F5,F8) -> 4 | X5: =SUM(F4,E5,E8) -> 1 | Y5: =W5-X5 -> 3
B6: 18 Juin | C6: 21h00 | D6: Cameroun | E6: 0 | F6: 4 | G6: Croatie | H6: 0 | I6: 0 | J6: 0 | K6: 3 | L6: 0 | M6: 0 | N6: 3 | O6: =IF(OR(N6=N4,N6=N7,N6=N8),RANK(Y6,Y4:Y7),N6) -> 3 | P6: Croatie | S6: 3 | T6: Croatie | U6: =SUM(IF(ISBLANK(F3),0,1),IF(ISBLANK(F6),0,1),IF(ISBLANK(E8),0,1)) -> 3 | V6: =SUM(K3:M3,K6:M6,H8:J8) -> 3 | W6: =SUM(F3,F6,E8) -> 6 | X6: =SUM(E3,E6,F8) -> 6 | Y6: =W6-X6 -> 0
B7: 23 Juin | C7: 22h00 | D7: Cameroun | E7: 1 | F7: 4 | G7: Brésil | H7: 0 | I7: 0 | J7: 0 | K7: 3 | L7: 0 | M7: 0 | N7: 1 | O7: =IF(OR(N7=N4,N7=N5,N7=N6),RANK(Y7,Y4:Y7),N7) -> 1 | P7: Brésil | S7: 4 | T7: Brésil | U7: =SUM(IF(ISBLANK(E3),0,1),IF(ISBLANK(E5),0,1),IF(ISBLANK(F7),0,1)) -> 3 | V7: =SUM(H3:J3,H5:J5,K7:M7) -> 7 | W7: =SUM(E3,E5,F7) -> 7 | X7: =SUM(F3,F5,E7) -> 2 | Y7: =W7-X7 -> 5
B8: 23 Juin | C8: 22h00 | D8: Croatie | E8: 1 | F8: 3 | G8: Mexique | H8: 0 | I8: 0 | J8: =IF(AND(E8=F8,ISNUMBER(E8),ISNUMBER(F8)),1,0) -> 0 | K8: 3 | L8: 0 | M8: 0 | P8: =IF(H8=3,D8,IF(K8=3,G8,IF(OR(J8,M8)=1,"",""))) -> Mexique
B10: Groupe B
B11: 13 Juin | C11: 21h00 | D11: Espagne | E11: 1 | F11: 5 | G11: Pays-Bas | H11: =IF(E11>F11,3,0) -> 0 | I11: =IF(E11<F11,0,0) -> 0 | J11: =IF(AND(E11=F11,ISNUMBER(E11),ISNUMBER(F11)),1,0) -> 0 | K11: =IF(F11>E11,3,0) -> 3 | L11: =IF(F11<E11,0,0) -> 0 | M11: =IF(AND(F11=E11,ISNUMBER(F11),ISNUMBER(E11)),1,0) -> 0 | P11: =IF(H11=3,D11,IF(K11=3,G11,IF(OR(J11,M11)=1,"",""))) -> Pays-Bas | T11: Groupe B | U11: MJ | V11: Pts | W11: BP | X11: BC | Y11: ="+/-" -> +/-
B12: 14 Juin | C12: 00h00 | D12: Chili | E12: 3 | F12: 1 | G12: Australie | H12: 3 | I12: 0 | J12: 0 | K12: 0 | L12: 0 | M12: =IF(AND(F12=E12,ISNUMBER(F12),ISNUMBER(E12)),1,0) -> 0 | N12: =RANK(V12,$V$12:$V$15) -> 1 | O12: =IF(OR(N12=N13,N12=N14,N12=N15),RANK(Y12,Y12:Y15),N12) -> 1 | P12: =IF(H12=3,D12,IF(K12=3,G12,IF(OR(J12,M12)=1,"",""))) -> Chili | S12: 1 | T12: Pays-Bas | U12: =SUM(IF(ISBLANK(F11),0,1),IF(ISBLANK(F14),0,1),IF(ISBLANK(E16),0,1)) -> 3 | V12: =SUM(K11:M11,K14:M14,H16:J16) -> 9 | W12: =SUM(F11,F14,E16) -> 10 | X12: =SUM(E11,E14,F16) -> 3 | Y12: =W12-X12 -> 7
B13: 19 Juin | C13: 00h00 | D13: Espagne | E13: 0 | F13: 2 | G13: Chili | H13: 0 | I13: 0 | J13: 0 | K13: 3 | L13: 0 | M13: 0 | N13: =RANK(V13,$V$12:$V$15) -> 2 | O13: =IF(OR(N13=N12,N13=N14,N13=N15),RANK(Y13,Y12:Y15),N13) -> 2 | P13: =IF(H13=3,D13,IF(K13=3,G13,IF(OR(J13,M13)=1,"",""))) -> Chili | S13: 2 | T13: Chili | U13: =SUM(IF(ISBLANK(E12),0,1),IF(ISBLANK(F13),0,1),IF(ISBLANK(F16),0,1)) -> 3 | V13: =SUM(H12:J12,K13:M13,K16:M16) -> 6 | W13: =SUM(E12,F13,F16) -> 5 | X13: =SUM(F12,E13,E16) -> 3 | Y13: =W13-X13 -> 2
B14: 18 Juin | C14: 18h00 | D14: Australie | E14: 2 | F14: 3 | G14: Pays-Bas | H14: 0 | I14: 0 | J14: 0 | K14: 3 | L14: 0 | M14: 0 | N14: =RANK(V14,$V$12:$V$15) -> 3 | O14: =IF(OR(N14=N12,N14=N15,N14=N16),RANK(Y14,Y12:Y15),N14) -> 3 | P14: Pays-Bas | S14: 3 | T14: Espagne | U14: =SUM(IF(ISBLANK(E11),0,1),IF(ISBLANK(E13),0,1),IF(ISBLANK(F15),0,1)) -> 3 | V14: =SUM(H11:J11,H13:J13,K15:M15) -> 3 | W14: =SUM(E11,E13,F15) -> 4 | X14: =SUM(F11,F13,E15) -> 7 | Y14: =W14-X14 -> -3
B15: 23 Juin | C15: 18h00 | D15: Australie | E15: 0 | F15: 3 | G15: Espagne | H15: 0 | I15: 0 | J15: 0 | K15: 3 | L15: 0 | M15: 0 | N15: =RANK(V15,$V$12:$V$15) -> 4 | O15: =IF(OR(N15=N12,N15=N13,N15=N14),RANK(Y15,Y12:Y15),N15) -> 4 | P15: Espagne | S15: 4 | T15: Australie | U15: =SUM(IF(ISBLANK(F12),0,1),IF(ISBLANK(E14),0,1),IF(ISBLANK(E15),0,1)) -> 3 | V15: =SUM(K12:M12,H14:J14,H15:J15) -> 0 | W15: =SUM(F12,E14,E15) -> 3 | X15: =SUM(E12,F14,F15) -> 9 | Y15: =W15-X15 -> -6
B16: 23 Juin | C16: 18h00 | D16: Pays-Bas | E16: 2 | F16: 0 | G16: Chili | H16: 3 | I16: 0 | J16: =IF(AND(E16=F16,ISNUMBER(E16),ISNUMBER(F16)),1,0) -> 0 | K16: 0 | L16: 0 | M16: 0 | P16: =IF(H16=3,D16,IF(K16=3,G16,IF(OR(J16,M16)=1,"",""))) -> Pays-Bas | AA16: Huitièmes de finale | AG16: Qualifié
B18: Groupe C
B19: 14 Juin | C19: 18h00 | D19: Colombie | E19: 3 | F19: 0 | G19: Grèce | H19: =IF(E19>F19,3,0) -> 3 | I19: =IF(E19<F19,0,0) -> 0 | J19: =IF(AND(E19=F19,ISNUMBER(E19),ISNUMBER(F19)),1,0) -> 0 | K19: =IF(F19>E19,3,0) -> 0 | L19: =IF(F19<E19,0,0) -> 0 | M19: =IF(AND(F19=E19,ISNUMBER(F19),ISNUMBER(E19)),1,0) -> 0 | P19: =IF(H19=3,D19,IF(K19=3,G19,IF(OR(J19,M19)=1,"",""))) -> Colombie | T19: Groupe C | U19: MJ | V19: Pts | W19: BP | X19: BC | Y19: ="+/-" -> +/- | AA19: 28 Juin | AB19: 18H00 | AC19: =(IF(S4=1,T4,IF(S5=1,T5,IF(S6=1,T6,IF(S7=1,T7))))) -> Cameroun | AF19: =IF(S12=2,T12,IF(S13=2,T13,IF(S14=2,T14,IF(S15=2,T15,"")))) -> Chili | AG19: =IF(AD19>AE19,AC19,IF(AE19>AD19,AF19,IF(AD19=AE19,"TAB",""))) -> TAB
B20: 15 Juin | C20: 00h00 | D20: Côte d'Ivoire | E20: 2 | F20: 1 | G20: Japon | H20: 3 | I20: 0 | J20: 0 | K20: 0 | L20: 0 | M20: =IF(AND(F20=E20,ISNUMBER(F20),ISNUMBER(E20)),1,0) -> 0 | N20: =RANK(V20,$V$20:$V$23) -> 1 | P20: =IF(H20=3,D20,IF(K20=3,G20,IF(OR(J20,M20)=1,"",""))) -> Côte d'Ivoire | S20: 1 | T20: Colombie | U20: =SUM(IF(ISBLANK(E19),0,1),IF(ISBLANK(E21),0,1),IF(ISBLANK(F23),0,1)) -> 2 | V20: =SUM(H19:J19,H21:J21,K23:M23) -> 6 | W20: =SUM(E19,E21,F23) -> 5 | X20: =SUM(F19,F21,E23) -> 1 | Y20: =W20-X20 -> 4
B21: 19 Juin | C21: 18h00 | D21: Colombie | E21: 2 | F21: 1 | G21: Côte d'Ivoire | H21: 3 | I21: 0 | J21: 0 | K21: 0 | L21: 0 | M21: 0 | N21: =RANK(V21,$V$20:$V$23) -> 2 | P21: =IF(H21=3,D21,IF(K21=3,G21,IF(OR(J21,M21)=1,"",""))) -> Colombie | S21: 2 | T21: Côte d'Ivoire | U21: =SUM(IF(ISBLANK(E20),0,1),IF(ISBLANK(F21),0,1),IF(ISBLANK(F24),0,1)) -> 2 | V21: =SUM(H20:J20,K21:M21,K24:M24) -> 3 | W21: =SUM(E20,F21,F24) -> 3 | X21: =SUM(F20,E21,E24) -> 3 | Y21: =W21-X21 -> 0 | AA21: Tirs aux Buts | AC21: =IF(AD21="","",AC19) ->  | AF21: =IF(AE21="","",AF19) ->  | AG21: =IF(AD19=AE19,IF(AD21>AE21,AC21,IF(AE21>AD21,AF21," "))," ") ->  | AY21: Finale | BE21: Vainqueur
B22: 20 Juin | C22: 00h00 | D22: Japon | E22: 0 | F22: 0 | G22: Grèce | H22: 0 | I22: 0 | J22: 1 | K22: 0 | L22: 0 | M22: 1 | N22: 3 | S22: 3 | T22: Japon | U22: =SUM(IF(ISBLANK(F20),0,1),IF(ISBLANK(E22),0,1),IF(ISBLANK(E23),0,1)) -> 2 | V22: =SUM(K20:M20,H22:J22,H23:J23) -> 1 | W22: =SUM(F20,E22,E23) -> 1 | X22: =SUM(E20,F22,F23) -> 2 | Y22: =W22-X22 -> -1
B23: 24 Juin | C23: 22h00 | D23: Japon | G23: Colombie | H23: 0 | I23: 0 | J23: 0 | K23: 0 | L23: 0 | M23: 0 | N23: 3 | S23: 4 | T23: Grèce | U23: =SUM(IF(ISBLANK(F19),0,1),IF(ISBLANK(F22),0,1),IF(ISBLANK(E24),0,1)) -> 2 | V23: =SUM(K19:M19,K22:M22,H24:J24) -> 1 | W23: =SUM(F19,F22,E24) -> 0 | X23: =SUM(E19,E22,F24) -> 3 | Y23: =W23-X23 -> -3 | AA23: 28 Juin | AB23: 22H00 | AC23: =IF(S20=1,T20,IF(S21=1,T21,IF(S22=1,T22,IF(S23=1,T23,"")))) -> Colombie | AF23: =IF(S28=2,T28,IF(S29=2,T29,IF(S30=2,T30,IF(S31=2,T31,"")))) -> Italie | AG23: =IF(AD23>AE23,AC23,IF(AE23>AD23,AF23,IF(AD23=AE23,"TAB"," "))) -> TAB
B24: 24 Juin | C24: 22h00 | D24: Grèce | G24: Côte d'Ivoire | H24: 0 | I24: 0 | J24: =IF(AND(E24=F24,ISNUMBER(E24),ISNUMBER(F24)),1,0) -> 0 | K24: 0 | L24: 0 | M24: 0 | P24: =IF(H24=3,D24,IF(K24=3,G24,IF(OR(J24,M24)=1,"",""))) ->  | AI24: Quarts de finale | AO24: Qualifié | AY24: 13 Juillet | AZ24: 21h00 | BA24: =IF(AW33=" ",AW31,AW33) -> FALSE | BB24: 1 | BC24: 2 | BD24: =IF(AW37=" ",AW35,AW37) -> FALSE | BE24: =IF(BB24>BC24,BA24,IF(BC24>BB24,BD24,IF(BB24=BC24,"TAB"," "))) -> FALSE
AA25: Tirs aux Buts | AC25: =IF(AD25="","",AC23) ->  | AF25: =IF(AE25="","",AF23) ->  | AG25: =IF(AD23=AE23,IF(AD25>AE25,AC25,IF(AE25>AD25,AF25))," ") -> FALSE
B26: Groupe D | AY26: Tirs aux Buts | BA26: =IF(BB26="","",BA24) ->  | BD26: =IF(BC26="","",BD24) ->  | BE26: =IF(BB24=BC24,IF(BB26>BC26,BA26,IF(BC26>BB26,BD26))," ") -> 
B27: 14 Juin | C27: 21h00 | D27: Uruguay | E27: 1 | F27: 3 | G27: Costa Rica | H27: =IF(E27>F27,3,0) -> 0 | I27: =IF(E27<F27,0,0) -> 0 | J27: =IF(AND(E27=F27,ISNUMBER(E27),ISNUMBER(F27)),1,0) -> 0 | K27: =IF(F27>E27,3,0) -> 3 | L27: =IF(F27<E27,0,0) -> 0 | M27: =IF(AND(F27=E27,ISNUMBER(F27),ISNUMBER(E27)),1,0) -> 0 | P27: =IF(H27=3,D27,IF(K27=3,G27,IF(OR(J27,M27)=1,"",""))) -> Costa Rica | T27: Groupe D | U27: MJ | V27: Pts | W27: BP | X27: BC | Y27: ="+/-" -> +/- | AA27: 29 Juin | AB27: 18H00 | AC27: =IF(S12=1,T12,IF(S13=1,T13,IF(S14=1,T14,IF(S15=1,T15)))) -> Pays-Bas | AF27: =IF(S4=2,T4,IF(S5=2,T5,IF(S6=2,T6,IF(S7=2,T7,"")))) -> Mexique | AG27: =IF(AD27>AE27,AC27,IF(AE27>AD27,AF27,IF(AD27=AE27,"TAB"," "))) -> TAB | AI27: 4 Juillet | AJ27: 22h00 | AK27: =IF(AG37=" ",AG35,AG37) -> FALSE | AN27: =IF(AG41=" ",AG39,AG41) -> FALSE | AO27: =IF(AL27>AM27,AK27,IF(AM27>AL27,AN27,IF(AL27=AM27,"TAB"," "))) -> TAB
B28: 15 Juin | C28: 03h00 | D28: Angleterre | E28: 1 | F28: 2 | G28: Italie | H28: 0 | I28: 0 | J28: 0 | K28: 3 | L28: 0 | M28: =IF(AND(F28=E28,ISNUMBER(F28),ISNUMBER(E28)),1,0) -> 0 | N28: =RANK(V28,$V$28:$V$31) -> 1 | P28: =IF(H28=3,D28,IF(K28=3,G28,IF(OR(J28,M28)=1,"",""))) -> Italie | S28: 1 | T28: Costa Rica | U28: =SUM(IF(ISBLANK(F27),0,1),IF(ISBLANK(F30),0,1),IF(ISBLANK(E32),0,1)) -> 2 | V28: =SUM(K27:M27,K30:M30,H32:J32) -> 6 | W28: =SUM(F27,F30,E32) -> 4 | X28: =SUM(E27,E30,F32) -> 1 | Y28: =W28-X28 -> 3 | AQ28: Demi-finales | AW28: Qualifié
B29: 19 Juin | C29: 21h00 | D29: Uruguay | E29: 2 | F29: 1 | G29: Angleterre | H29: 3 | I29: 0 | J29: 0 | K29: 0 | L29: 0 | M29: 0 | N29: =RANK(V29,$V$28:$V$31) -> 2 | P29: =IF(H29=3,D29,IF(K29=3,G29,IF(OR(J29,M29)=1,"",""))) -> Uruguay | S29: 2 | T29: Italie | U29: =SUM(IF(ISBLANK(F28),0,1),IF(ISBLANK(E30),0,1),IF(ISBLANK(E31),0,1)) -> 2 | V29: =SUM(K28:M28,H30:J30,H31:J31) -> 3 | W29: =SUM(F28,E30,E31) -> 2 | X29: =SUM(E28,F30,F31) -> 2 | Y29: =W29-X29 -> 0 | AA29: Tirs aux Buts | AC29: =IF(AD29="","",AC27) ->  | AF29: =IF(AE29="","",AF27) ->  | AG29: =IF(AD27=AE27,IF(AD29>AE29,AC29,IF(AE29>AD29,AF29))," ") -> FALSE | AI29: Tirs aux Buts | AK29: =IF(AL29=""," ",AK27) ->  | AN29: =IF(AM29=""," ",AN27) ->  | AO29: =IF(AL27=AM27,IF(AL29>AM29,AK29,IF(AM29>AL29,AN29))," ") -> FALSE | AZ29: VAINQUEUR | BB29: =IF(BE26=" ",BE24,BE26) -> FALSE
B30: 20 Juin | C30: 18h00 | D30: Italie | E30: 0 | F30: 1 | G30: Costa Rica | H30: 0 | I30: 0 | J30: 0 | K30: 3 | L30: 0 | M30: 0 | N30: 2 | P30: Costa Rica | S30: 3 | T30: Uruguay | U30: =SUM(IF(ISBLANK(E27),0,1),IF(ISBLANK(E29),0,1),IF(ISBLANK(F31),0,1)) -> 2 | V30: =SUM(H27:J27,H29:J29,K31:M31) -> 3 | W30: =SUM(E27,E29,F31) -> 3 | X30: =SUM(F27,F29,E31) -> 4 | Y30: =W30-X30 -> -1
B31: 24 Juin | C31: 18h00 | D31: Italie | G31: Uruguay | H31: 0 | I31: 0 | J31: 0 | K31: 0 | L31: 0 | M31: 0 | N31: 4 | S31: 4 | T31: Angleterre | U31: =SUM(IF(ISBLANK(E28),0,1),IF(ISBLANK(F29),0,1),IF(ISBLANK(F32),0,1)) -> 2 | V31: =SUM(H28:J28,K29:M29,K32:M32) -> 0 | W31: =SUM(E28,F29,F32) -> 2 | X31: =SUM(F28,E29,E32) -> 4 | Y31: =W31-X31 -> -2 | AA31: 29 Juin | AB31: 22h00 | AC31: =IF(S28=1,T28,IF(S29=1,T29,IF(S30=1,T30,IF(S31=1,T31)))) -> Costa Rica | AF31: =IF(S20=2,T20,IF(S21=2,T21,IF(S22=2,T22,IF(S23=2,T23,"")))) -> Côte d'Ivoire | AG31: =IF(AD31>AE31,AC31,IF(AE31>AD31,AF31,IF(AD31=AE31,"TAB"," "))) -> TAB | AI31: 4 Juillet | AJ31: 18h00 | AK31: =IF(AG21=" ",AG19,AG21) -> TAB | AN31: =IF(AG25=" ",AG23,AG25) -> FALSE | AO31: =IF(AL31>AM31,AK31,IF(AM31>AL31,AN31,IF(AL31=AM31,"TAB"," "))) -> TAB | AQ31: 8 Juillet | AR31: 18h00 | AS31: =IF(AO33=" ",AO31,AO33) -> FALSE | AV31: =IF(AO29=" ",AO27,AO29) -> FALSE | AW31: =IF(AT31>AU31,AS31,IF(AU31>AT31,AV31,IF(AT31=AU31,"TAB"," "))) -> TAB
B32: 24 Juin | C32: 18h00 | D32: Costa Rica | G32: Angleterre | H32: 0 | I32: 0 | J32: =IF(AND(E32=F32,ISNUMBER(E32),ISNUMBER(F32)),1,0) -> 0 | K32: 0 | L32: 0 | M32: 0 | P32: =IF(H32=3,D32,IF(K32=3,G32,IF(OR(J32,M32)=1,"",""))) ->  | AZ32: SECOND | BB32: =IF(OR(BE26=BA24,BE24=BA24),BD24,BA24) -> FALSE
AA33: Tirs aux Buts | AC33: =IF(AD33="","",AC31) ->  | AF33: =IF(AE33="","",AF31) ->  | AG33: =IF(AD31=AE31,IF(AD33>AE33,AC33,IF(AE33>AD33,AF33))," ") -> FALSE | AI33: Tirs aux Buts | AK33: =IF(AL33=""," ",AK31) ->  | AN33: =IF(AM33="","",AN31) ->  | AO33: =IF(AL31=AM31,IF(AL33>AM33,AK33,IF(AM33>AL33,AN33))," ") -> FALSE | AQ33: Tirs aux Buts | AS33: =IF(AT33="","",AS31) ->  | AV33: =IF(AU33="","",AV31) ->  | AW33: =IF(AT31=AU31,IF(AT33>AU33,AS33,IF(AU33>AT33,AV33))," ") -> FALSE
B34: Groupe E | AZ34: TROISIEME | BB34: =IF(BE44=" ",BE42,BE44) -> FALSE
B35: 15 Juin | C35: 18h00 | D35: Suisse | E35: 2 | F35: 1 | G35: Equateur | H35: =IF(E35>F35,3,0) -> 3 | I35: =IF(E35<F35,0,0) -> 0 | J35: =IF(AND(E35=F35,ISNUMBER(E35),ISNUMBER(F35)),1,0) -> 0 | K35: =IF(F35>E35,3,0) -> 0 | L35: =IF(F35<E35,0,0) -> 0 | M35: =IF(AND(F35=E35,ISNUMBER(F35),ISNUMBER(E35)),1,0) -> 0 | P35: =IF(H35=3,D35,IF(K35=3,G35,IF(OR(J35,M35)=1,"",""))) -> Suisse | T35: Groupe E | U35: MJ | V35: Pts | W35: BP | X35: BC | Y35: ="+/-" -> +/- | AA35: 30 Juin | AB35: 18h00 | AC35: =IF(S36=1,T36,IF(S37=1,T37,IF(S38=1,T38,IF(S39=1,T39)))) -> France | AF35: =IF(S44=2,T44,IF(S45=2,T45,IF(S46=2,T46,IF(S47=2,T47,"")))) -> Nigéria | AG35: =IF(AD35>AE35,AC35,IF(AE35>AD35,AF35,IF(AD35=AE35,"TAB"," "))) -> TAB | AI35: 5 Juillet | AJ35: 22h00 | AK35: =IF(AG45=" ",AG43,AG45) -> FALSE | AN35: =IF(AG49=" ",AG47,AG49) -> FALSE | AO35: =IF(AL35>AM35,AK35,IF(AM35>AL35,AN35,IF(AL35=AM35,"TAB"," "))) -> TAB | AQ35: 9 Juillet | AR35: 22h00 | AS35: =IF(AO41=" ",AO39,AO41) -> FALSE | AV35: =IF(AO37=" ",AO35,AO37) -> FALSE | AW35: =IF(AT35>AU35,AS35,IF(AU35>AT35,AV35,IF(AT35=AU35,"TAB"," "))) -> TAB
B36: 15 Juin | C36: 21h00 | D36: France | E36: 3 | F36: 0 | G36: Honduras | H36: 3 | I36: 0 | J36: 0 | K36: 0 | L36: 0 | M36: =IF(AND(F36=E36,ISNUMBER(F36),ISNUMBER(E36)),1,0) -> 0 | N36: =RANK(V36,$V$36:$V$39) -> 1 | P36: =IF(H36=3,D36,IF(K36=3,G36,IF(OR(J36,M36)=1,"",""))) -> France | S36: 1 | T36: France | U36: =SUM(IF(ISBLANK(E36),0,1),IF(ISBLANK(F37),0,1),IF(ISBLANK(F40),0,1)) -> 2 | V36: =SUM(H36:J36,K37:M37,K40:M40) -> 6 | W36: =SUM(E36,F37,F40) -> 8 | X36: =SUM(F36,E37,E40) -> 2 | Y36: =W36-X36 -> 6 | AZ36: QUATRIEME | BB36: =IF(OR(BE44=BA42,BE42=BA42),BD42,BA42) -> FALSE
B37: 20 Juin | C37: 21h00 | D37: Suisse | E37: 2 | F37: 5 | G37: France | H37: 0 | I37: 0 | J37: 0 | K37: 3 | L37: 0 | M37: 0 | N37: =RANK(V37,$V$36:$V$39) -> 2 | P37: =IF(H37=3,D37,IF(K37=3,G37,IF(OR(J37,M37)=1,"",""))) -> France | S37: 2 | T37: Equateur | U37: =SUM(IF(ISBLANK(F35),0,1),IF(ISBLANK(F38),0,1),IF(ISBLANK(E40),0,1)) -> 2 | V37: =SUM(K35:M35,K38:M38,H40:J40) -> 3 | W37: =SUM(F35,F38,E40) -> 3 | X37: =SUM(E35,E38,F40) -> 3 | Y37: =W37-X37 -> 0 | AA37: Tirs aux Buts | AC37: =IF(AD37="","",AC35) ->  | AF37: =IF(AE37="","",AF35) ->  | AG37: =IF(AD35=AE35,IF(AD37>AE37,AC37,IF(AE37>AD37,AF37))," ") -> FALSE | AI37: Tirs aux Buts | AK37: =IF(AL37="","",AK35) ->  | AN37: =IF(AM37="","",AN35) ->  | AO37: =IF(AL35=AM35,IF(AL37>AM37,AK37,IF(AM37>AL37,AN37))," ") -> FALSE | AQ37: Tirs aux Buts | AS37: =IF(AT37="","",AS35) ->  | AV37: =IF(AU37="","",AV35) ->  | AW37: =IF(AT35=AU35,IF(AT37>AU37,AS37,IF(AU37>AT37,AV37))," ") -> FALSE
B38: 21 Juin | C38: 00h00 | D38: Honduras | E38: 1 | F38: 2 | G38: Equateur | H38: 0 | I38: 0 | J38: 0 | K38: 3 | L38: 0 | M38: 0 | N38: 2 | P38: Equateur | S38: 3 | T38: Suisse | U38: =SUM(IF(ISBLANK(E35),0,1),IF(ISBLANK(E37),0,1),IF(ISBLANK(F39),0,1)) -> 2 | V38: =SUM(H35:J35,H37:J37,K39:M39) -> 3 | W38: =SUM(E35,E37,F39) -> 4 | X38: =SUM(F35,F37,E39) -> 6 | Y38: =W38-X38 -> -2
B39: 25 Juin | C39: 22h00 | D39: Honduras | G39: Suisse | H39: 0 | I39: 0 | J39: 0 | K39: 0 | L39: 0 | M39: 0 | N39: 4 | S39: 4 | T39: Honduras | U39: =SUM(IF(ISBLANK(F36),0,1),IF(ISBLANK(E38),0,1),IF(ISBLANK(E39),0,1)) -> 2 | V39: =SUM(K36:M36,H38:J38,H39:J39) -> 0 | W39: =SUM(F36,E38,E39) -> 1 | X39: =SUM(E36,F38,F39) -> 5 | Y39: =W39-X39 -> -4 | AA39: 30 Juin | AB39: 22h00 | AC39: =IF(S52=1,T52,IF(S53=1,T53,IF(S54=1,T54,IF(S55=1,T55)))) -> Allemagne | AF39: =IF(S60=2,T60,IF(S61=2,T61,IF(S62=2,T62,IF(S63=2,T63,"")))) -> Algérie | AG39: =IF(AD39>AE39,AC39,IF(AE39>AD39,AF39,IF(AD39=AE39,"TAB"," "))) -> TAB | AI39: 5 Juillet | AJ39: 18h00 | AK39: =IF(AG29=" ",AG27,AG29) -> FALSE | AN39: =IF(AG33=" ",AG31,AG33) -> FALSE | AO39: =IF(AL39>AM39,AK39,IF(AM39>AL39,AN39,IF(AL39=AM39,"TAB"," "))) -> TAB | AY39: Troisième place | BE39: Qualifié
B40: 25 Juin | C40: 22h00 | D40: Equateur | G40: France | H40: 0 | I40: 0 | J40: =IF(AND(E40=F40,ISNUMBER(E40),ISNUMBER(F40)),1,0) -> 0 | K40: 0 | L40: 0 | M40: 0 | P40: =IF(H40=3,D40,IF(K40=3,G40,IF(OR(J40,M40)=1,"",""))) -> 
AA41: Tirs aux Buts | AC41: =IF(AD41="","",AC39) ->  | AF41: =IF(AE41="","",AF39) ->  | AG41: =IF(AD39=AE39,IF(AD41>AE41,AC41,IF(AE41>AD41,AF41))," ") -> FALSE | AI41: Tirs aux Buts | AK41: =IF(AL41="","",AK39) ->  | AN41: =IF(AM41="","",AN39) ->  | AO41: =IF(AL39=AM39,IF(AL41>AM41,AK41,IF(AM41>AL41,AN41))," ") -> FALSE
B42: Groupe F | AY42: 12 Juillet | AZ42: 21h00 | BA42: =IF(BA24=AS31,AV31,AS31) -> FALSE | BB42: 2 | BC42: 1 | BD42: =IF(BD24=AS35,AV35,AS35) -> FALSE | BE42: =IF(BB42>BC42,BA42,IF(BC42>BB42,BD42,IF(BB42=BC42,"TAB"," "))) -> FALSE
B43: 16 Juin | C43: 00h00 | D43: Argentine | E43: 2 | F43: 1 | G43: Bosnie-Herzégovine | H43: =IF(E43>F43,3,0) -> 3 | I43: =IF(E43<F43,0,0) -> 0 | J43: =IF(AND(E43=F43,ISNUMBER(E43),ISNUMBER(F43)),1,0) -> 0 | K43: =IF(F43>E43,3,0) -> 0 | L43: =IF(F43<E43,0,0) -> 0 | M43: =IF(AND(F43=E43,ISNUMBER(F43),ISNUMBER(E43)),1,0) -> 0 | P43: =IF(H43=3,D43,IF(K43=3,G43,IF(OR(J43,M43)=1,"",""))) -> Argentine | T43: Groupe F | U43: MJ | V43: Pts | W43: BP | X43: BC | Y43: ="+/-" -> +/- | AA43: 1er Juillet | AB43: 18h00 | AC43: =IF(S44=1,T44,IF(S45=1,T45,IF(S46=1,T46,IF(S47=1,T47)))) -> Argentine | AF43: =IF(S36=2,T36,IF(S37=2,T37,IF(S38=2,T38,IF(S39=2,T39,"")))) -> Equateur | AG43: =IF(AD43>AE43,AC43,IF(AE43>AD43,AF43,IF(AD43=AE43,"TAB"," "))) -> TAB
B44: 16 Juin | C44: 21h00 | D44: Iran | E44: 0 | F44: 0 | G44: Nigéria | H44: 0 | I44: 0 | J44: 1 | K44: 0 | L44: 0 | M44: =IF(AND(F44=E44,ISNUMBER(F44),ISNUMBER(E44)),1,0) -> 1 | N44: =RANK(V44,$V$44:$V$47) -> 1 | P44: =IF(H44=3,D44,IF(K44=3,G44,IF(OR(J44,M44)=1,"",""))) ->  | S44: 1 | T44: Argentine | U44: =SUM(IF(ISBLANK(E43),0,1),IF(ISBLANK(E45),0,1),IF(ISBLANK(F47),0,1)) -> 2 | V44: =SUM(H43:J43,H45:J45,K47:M47) -> 6 | W44: =SUM(E43,E45,F47) -> 3 | X44: =SUM(F43,F45,E47) -> 1 | Y44: =W44-X44 -> 2 | AY44: Tirs aux Buts | BA44: =IF(BB44="","",BA42) ->  | BD44: =IF(BC44="","",BD42) ->  | BE44: =IF(BB42=BC42,IF(BB44>BC44,BA44,IF(BC44>BB44,BD44))," ") -> 
B45: 21 Juin | C45: 18h00 | D45: Argentine | E45: 1 | F45: 0 | G45: Iran | H45: 3 | I45: 0 | J45: 0 | K45: 0 | L45: 0 | M45: 0 | N45: =RANK(V45,$V$44:$V$47) -> 2 | P45: =IF(H45=3,D45,IF(K45=3,G45,IF(OR(J45,M45)=1,"",""))) -> Argentine | S45: 2 | T45: Nigéria | U45: =SUM(IF(ISBLANK(F44),0,1),IF(ISBLANK(E46),0,1),IF(ISBLANK(E47),0,1)) -> 2 | V45: =SUM(K44:M44,H46:J46,H47:J47) -> 4 | W45: =SUM(F44,E46,E47) -> 1 | X45: =SUM(E44,F46,F47) -> 0 | Y45: =W45-X45 -> 1 | AA45: Tirs aux Buts | AC45: =IF(AD45="","",AC43) ->  | AF45: =IF(AE45="","",AF43) ->  | AG45: =IF(AD43=AE43,IF(AD45>AE45,AC45,IF(AE45>AD45,AF45))," ") -> FALSE
B46: 22 Juin | C46: 00h00 | D46: Nigéria | E46: 1 | F46: 0 | G46: Bosnie-Herzégovine | H46: 3 | I46: 0 | J46: 0 | K46: 0 | L46: 0 | M46: 0 | N46: 3 | P46: Nigéria | S46: 3 | T46: Iran | U46: =SUM(IF(ISBLANK(E44),0,1),IF(ISBLANK(F45),0,1),IF(ISBLANK(F48),0,1)) -> 2 | V46: =SUM(H44:J44,K45:M45,K48:M48) -> 1 | W46: =SUM(E44,F45,F48) -> 0 | X46: =SUM(F44,E45,E48) -> 1 | Y46: =W46-X46 -> -1
B47: 25 Juin | C47: 18h00 | D47: Nigéria | G47: Argentine | H47: 0 | I47: 0 | J47: 0 | K47: 0 | L47: 0 | M47: 0 | N47: 4 | S47: 4 | T47: Bosnie-Herzégovine | U47: =SUM(IF(ISBLANK(F43),0,1),IF(ISBLANK(F46),0,1),IF(ISBLANK(E48),0,1)) -> 2 | V47: =SUM(K43:M43,K46:M46,H48:J48) -> 0 | W47: =SUM(F43,F46,E48) -> 1 | X47: =SUM(E43,E46,F48) -> 3 | Y47: =W47-X47 -> -2 | AA47: 1er Juillet | AB47: 22h00 | AC47: =IF(S60=1,T60,IF(S61=1,T61,IF(S62=1,T62,IF(S63=1,T63)))) -> Belgique | AF47: =IF(S52=2,T52,IF(S53=2,T53,IF(S54=2,T54,IF(S55=2,T55,"")))) -> Etats-Unis | AG47: =IF(AD47>AE47,AC47,IF(AE47>AD47,AF47,IF(AD47=AE47,"TAB"," "))) -> TAB
B48: 25 Juin | C48: 18h00 | D48: Bosnie-Herzégovine | G48: Iran | H48: 0 | I48: 0 | J48: =IF(AND(E48=F48,ISNUMBER(E48),ISNUMBER(F48)),1,0) -> 0 | K48: 0 | L48: 0 | M48: 0 | P48: =IF(H48=3,D48,IF(K48=3,G48,IF(OR(J48,M48)=1,"",""))) -> 
AA49: Tirs aux Buts | AC49: =IF(AD49="","",AC47) ->  | AF49: =IF(AE49="","",AF47) ->  | AG49: =IF(AD47=AE47,IF(AD49>AE49,AC49,IF(AE49>AD49,AF49))," ") -> FALSE
B50: Groupe G
B51: 16 Juin | C51: 18h00 | D51: Allemagne | E51: 4 | F51: 0 | G51: Portugal | H51: =IF(E51>F51,3,0) -> 3 | I51: =IF(E51<F51,0,0) -> 0 | J51: =IF(AND(E51=F51,ISNUMBER(E51),ISNUMBER(F51)),1,0) -> 0 | K51: =IF(F51>E51,3,0) -> 0 | L51: =IF(F51<E51,0,0) -> 0 | M51: =IF(AND(F51=E51,ISNUMBER(F51),ISNUMBER(E51)),1,0) -> 0 | P51: =IF(H51=3,D51,IF(K51=3,G51,IF(OR(J51,M51)=1,"",""))) -> Allemagne | T51: Groupe G | U51: MJ | V51: Pts | W51: BP | X51: BC | Y51: ="+/-" -> +/-
B52: 17 Juin | C52: 00h00 | D52: Ghana | E52: 1 | F52: 2 | G52: Etats-Unis | H52: 0 | I52: 0 | J52: 0 | K52: 3 | L52: 0 | M52: =IF(AND(F52=E52,ISNUMBER(F52),ISNUMBER(E52)),1,0) -> 0 | N52: =RANK(V52,$V$52:$V$55) -> 1 | P52: =IF(H52=3,D52,IF(K52=3,G52,IF(OR(J52,M52)=1,"",""))) -> Etats-Unis | S52: 1 | T52: Allemagne | U52: =SUM(IF(ISBLANK(E51),0,1),IF(ISBLANK(E53),0,1),IF(ISBLANK(F55),0,1)) -> 2 | V52: =SUM(H51:J51,H53:J53,K55:M55) -> 4 | W52: =SUM(E51,E53,F55) -> 6 | X52: =SUM(F51,F53,E55) -> 2 | Y52: =W52-X52 -> 4
B53: 21 Juin | C53: 21h00 | D53: Allemagne | E53: 2 | F53: 2 | G53: Ghana | H53: 0 | I53: 0 | J53: 1 | K53: 0 | L53: 0 | M53: 1 | N53: =RANK(V53,$V$52:$V$55) -> 1 | P53: =IF(H53=3,D53,IF(K53=3,G53,IF(OR(J53,M53)=1,"",""))) ->  | S53: 2 | T53: Etats-Unis | U53: =SUM(IF(ISBLANK(F52),0,1),IF(ISBLANK(E54),0,1),IF(ISBLANK(E55),0,1)) -> 2 | V53: =SUM(K52:M52,H54:J54,H55:J55) -> 4 | W53: =SUM(F52,E54,E55) -> 4 | X53: =SUM(E52,F54,F55) -> 3 | Y53: =W53-X53 -> 1
B54: 22 Juin | C54: 21h00 | D54: Etats-Unis | E54: 2 | F54: 2 | G54: Portugal | H54: 0 | I54: 0 | J54: 1 | K54: 0 | L54: 0 | M54: 1 | N54: 3 | S54: 3 | T54: Ghana | U54: =SUM(IF(ISBLANK(E52),0,1),IF(ISBLANK(F53),0,1),IF(ISBLANK(F56),0,1)) -> 2 | V54: =SUM(H52:J52,K53:M53,K56:M56) -> 1 | W54: =SUM(E52,F53,F56) -> 3 | X54: =SUM(F52,E53,F56) -> 4 | Y54: =W54-X54 -> -1
B55: 26 Juin | C55: 18h00 | D55: Etats-Unis | G55: Allemagne | H55: 0 | I55: 0 | J55: 0 | K55: 0 | L55: 0 | M55: 0 | N55: 3 | S55: 4 | T55: Portugal | U55: =SUM(IF(ISBLANK(F51),0,1),IF(ISBLANK(F54),0,1),IF(ISBLANK(E56),0,1)) -> 2 | V55: =SUM(K51:M51,K54:M54,H56:J56) -> 1 | W55: =SUM(F51,F54,E56) -> 2 | X55: =SUM(E51,E54,F56) -> 6 | Y55: =W55-X55 -> -4
B56: 26 Juin | C56: 18h00 | D56: Portugal | G56: Ghana | H56: 0 | I56: 0 | J56: =IF(AND(E56=F56,ISNUMBER(E56),ISNUMBER(F56)),1,0) -> 0 | K56: 0 | L56: 0 | M56: 0 | P56: =IF(H56=3,D56,IF(K56=3,G56,IF(OR(J56,M56)=1,"",""))) -> 
B58: Groupe H
B59: 17 Juin | C59: 18h00 | D59: Belgique | E59: 2 | F59: 1 | G59: Algérie | H59: =IF(E59>F59,3,0) -> 3 | I59: =IF(E59<F59,0,0) -> 0 | J59: =IF(AND(E59=F59,ISNUMBER(E59),ISNUMBER(F59)),1,0) -> 0 | K59: =IF(F59>E59,3,0) -> 0 | L59: =IF(F59<E59,0,0) -> 0 | M59: =IF(AND(F59=E59,ISNUMBER(F59),ISNUMBER(E59)),1,0) -> 0 | P59: =IF(H59=3,D59,IF(K59=3,G59,IF(OR(J59,M59)=1,"",""))) -> Belgique | T59: Groupe H | U59: MJ | V59: Pts | W59: BP | X59: BC | Y59: ="+/-" -> +/-
B60: 18 Juin | C60: 00h00 | D60: Russie | E60: 1 | F60: 1 | G60: Corée du Sud | H60: 0 | I60: 0 | J60: 1 | K60: 0 | L60: 0 | M60: =IF(AND(F60=E60,ISNUMBER(F60),ISNUMBER(E60)),1,0) -> 1 | N60: =RANK(V60,$V$60:$V$63) -> 1 | P60: =IF(H60=3,D60,IF(K60=3,G60,IF(OR(J60,M60)=1,"",""))) ->  | S60: 1 | T60: Belgique | U60: =SUM(IF(ISBLANK(E59),0,1),IF(ISBLANK(E61),0,1),IF(ISBLANK(F63),0,1)) -> 2 | V60: =SUM(H59:J59,H61:J61,K63:M63) -> 6 | W60: =SUM(E59,E61,F63) -> 3 | X60: =SUM(F59,F61,E63) -> 1 | Y60: =W60-X60 -> 2
B61: 23 Juin | C61: 00h00 | D61: Belgique | E61: 1 | F61: 0 | G61: Russie | H61: 3 | I61: 0 | J61: 0 | K61: 0 | L61: 0 | M61: 0 | N61: =RANK(V61,$V$60:$V$63) -> 2 | P61: =IF(H61=3,D61,IF(K61=3,G61,IF(OR(J61,M61)=1,"",""))) -> Belgique | S61: 2 | T61: Algérie | U61: =SUM(IF(ISBLANK(F59),0,1),IF(ISBLANK(F62),0,1),IF(ISBLANK(E64),0,1)) -> 2 | V61: =SUM(K59:M59,K62:M62,H64:J64) -> 3 | W61: =SUM(F59,F62,E64) -> 5 | X61: =SUM(E59,E62,F64) -> 4 | Y61: =W61-X61 -> 1
B62: 22 Juin | C62: 18h00 | D62: Corée du Sud | E62: 2 | F62: 4 | G62: Algérie | H62: 0 | I62: 0 | J62: 0 | K62: 3 | L62: 0 | M62: 0 | N62: =RANK(V62,$V$60:$V$63) -> 3 | P62: Algérie | S62: 3 | T62: Russie | U62: =SUM(IF(ISBLANK(E60),0,1),IF(ISBLANK(F61),0,1),IF(ISBLANK(F64),0,1)) -> 2 | V62: =SUM(H60:J60,K61:M61,K64:M64) -> 1 | W62: =SUM(E60,F61,F64) -> 1 | X62: =SUM(F60,E61,E64) -> 2 | Y62: =W62-X62 -> -1
B63: 26 Juin | C63: 22h00 | D63: Corée du Sud | G63: Belgique | H63: 0 | I63: 0 | J63: 0 | K63: 0 | L63: 0 | M63: 0 | N63: =RANK(V63,$V$60:$V$63) -> 3 | S63: 4 | T63: Corée du Sud | U63: =SUM(IF(ISBLANK(F60),0,1),IF(ISBLANK(E62),0,1),IF(ISBLANK(E63),0,1)) -> 2 | V63: =SUM(K60:M60,H62:J62,H63:J63) -> 1 | W63: =SUM(F60,E62,E63) -> 3 | X63: =SUM(E60,F62,F63) -> 5 | Y63: =W63-X63 -> -2
B64: 26 Juin | C64: 22h00 | D64: Algérie | G64: Russie | H64: 0 | I64: 0 | J64: =IF(AND(E64=F64,ISNUMBER(E64),ISNUMBER(F64)),1,0) -> 0 | K64: 0 | L64: 0 | M64: 0 | P64: =IF(H64=3,D64,IF(K64=3,G64,IF(OR(J64,M64)=1,"",""))) -> 
